Cogmind - Beta 15 @@@ ROGUE MODE // 2025.08.06 @ 18:31:49 Player: Skysub Result: Self-destructed Performance ------------- Evolutions (3) 1500 Regions Visited (5) 1000 Robots Destroyed (8) 40 Value Destroyed (128) 128 Prototype IDs (2) 40 Alien Tech Used (0) 0 Bonus (470) 470 TOTAL SCORE: 3178 Bonus ------- Pacifist 470 Cogmind --------- Core Integrity 672/700 Matter 226/300 Energy 13/100 System Corruption 0% Temperature Cool (0) Movement Core (200) Ox3 Location -7/Factory Parts ------- > --- POWER (2) -------- (None) > --- PROPULSION (5) --- Gravmag System Gravmag System Gravmag System Cooled Airjet > --- UTILITY (4) ------ Small Storage Unit Structural Scanner Improved Sensor Array Improved Signal Interpreter > --- WEAPON (2) ------- Maul > --- INVENTORY (8) ---- Flight Unit Flight Unit Cooling System Heavy Armor Plating Hardened Medium Armor Plating Improved Grenade Launcher Peak State ------------ > --- POWER ------------ Ion Engine > --- PROPULSION ------- Gravmag System Gravmag System Gravmag System Gravmag System Cooled Airjet > --- UTILITY ---------- Small Storage Unit Structural Scanner Improved Sensor Array Improved Signal Interpreter > --- WEAPON ----------- Maul > --- INVENTORY -------- Flight Unit Flight Unit Cooling System Heavy Armor Plating Hardened Medium Armor Plating Improved Grenade Launcher [Rating: 33] Favorites ----------- Power Ion Engine Engine Ion Engine Propulsion Gravmag System Hover Unit Gravmag System Utility Structural Scanner Device Structural Scanner Storage Small Storage Unit Processor Improved Signal Interpreter Protection Medium Armor Plating Weapon Maul Launcher Improved Grenade Launcher Impact Weapon Maul Build | -11 -10 -10 -9 -8 -7 ------- Run | Yrd Mat Min Mat Mat Fac Slots Evolved 6 | . . . 2 2 2 Power 1 | . . . . . 1 Propulsion 3 | . . . 1 1 1 Utility 2 | . . . 1 1 . Weapon . | . . . . . . Parts Attached 14 | . . . 2 11 1 Power 1 | . . . . 1 . Engine 1 | . . . . 1 . Core . | . . . . . . Reactor . | . . . . . . Propulsion 5 | . . . . 4 1 Treads . | . . . . . . Leg . | . . . . . . Wheel . | . . . . . . Hover 5 | . . . . 4 1 Flight . | . . . . . . Utility 5 | . . . 1 4 . Device 2 | . . . 1 1 . Storage 1 | . . . . 1 . Processor 1 | . . . . 1 . Hackware . | . . . . . . Protection 1 | . . . . 1 . Artifact . | . . . . . . Weapon 3 | . . . 1 2 . Energy Gun . | . . . . . . Energy Cannon . | . . . . . . Ballistic Gun . | . . . . . . Ballistic Cannon . | . . . . . . Launcher 1 | . . . . 1 . Special Weapon . | . . . . . . Impact Weapon 2 | . . . 1 1 . Slashing Weapon . | . . . . . . Piercing Weapon . | . . . . . . Special Melee Weapon . | . . . . . . Unidentified Prototypes 2 | . . . 1 . 1 Parts Lost 4 | . . . 1 1 2 Power 1 | . . . . . 1 Propulsion 2 | . . . 1 . 1 Utility 1 | . . . . 1 . Weapon . | . . . . . . Highest Loss Streak 2 | . . . 1 1 2 To Critical Strikes . | . . . . . . Average Backups 4 | 1 4 5 4 4 6 Power . | 1 1 1 1 . . Propulsion . | . . . . . 2 Utility 2 | . 1 2 1 1 3 Weapon 1 | . . 2 1 1 1 Tool/Special . | . . . . . . Unused Backups 7 | . 1 . . 1 5 Power 1 | . 1 . . . . Propulsion 2 | . . . . . 2 Utility 3 | . . . . . 3 Weapon 1 | . . . . 1 . Tool/Special . | . . . . . . Average Slot Usage (%) 37 | . . . 7 61 75 Engine 3 | . . . . 6 5 Hover 15 | . . . . 28 31 Device 7 | . . . 3 11 15 Storage 2 | . . . . 1 7 Processor 2 | . . . . 2 7 Impact Weapon 4 | . . . 3 7 7 Peak Build Rating 33 | . . . 2 28 33 Average Rating 12 | . . . . 19 28 On Entrance 5 | . . . . 2 28 Naked Turns 180 | . 58 30 92 . . Heaviest Build 19 | . . . 3 19 15 Greatest Support 48 | 3 3 3 3 36 48 Greatest Overweight (x) . | . . . . . . Average Overweight (x) . | . . . . . . Largest Inventory Capacity 8 | 5 5 5 5 8 8 Average Capacity 5 | 5 5 5 5 5 8 Most Carried 7 | 3 5 5 5 7 7 Average Carried 5 | 2 4 5 4 4 7 Final Capacity 8 | 5 5 5 5 8 8 Final Carried 7 | 3 5 5 4 7 7 Class Distribution -------------------- 60% | Mutant 39% | Scout Dominant Class ---------------- Mutant | -10/Materials Mutant | -10/Mines Mutant | -9/Materials Scout | -8/Materials Scout | -7/Factory Resources | -11 -10 -10 -9 -8 -7 ----------- Run | Yrd Mat Min Mat Mat Fac Matter Collected 271 | 178 . 9 . 14 70 Remotely . | . . . . . . Salvage Created 157 | . . . . 39 118 Parts 6 | . . . . 5 1 Haulers Intercepted . | . . . . . . Recyclers Shooed . | . . . . . . Parts Field Recycled . | . . . . . . Retrieved Matter . | . . . . . . Parts Self-Destructed . | . . . . . . Prevented . | . . . . . . Kills | -11 -10 -10 -9 -8 -7 ------- Run | Yrd Mat Min Mat Mat Fac Combat Hostiles Destroyed 5 | . . . . 4 1 Melee 2 | . . . . 1 1 AOE 3 | . . . . 3 . Classes Destroyed 5 | . . . . 1 4 Worker 1 | . . . . . 1 Builder 1 | . . . . . 1 Watcher 1 | . . . . . 1 Swarmer 4 | . . . . 4 . Grunt 1 | . . . . . 1 Best Kill Streak 4 | . . . . 4 2 Combat Bots Only 4 | . . . . 4 1 Max Kills in Single Turn 3 | . . . . 3 1 Gunslinging . | . . . . . . Exploded 3 | . . . . 3 . Melee 1 | . . . . 1 1 Uniques/NPCs Destroyed . | . . . . . . Combat | -11 -10 -10 -9 -8 -7 -------- Run | Yrd Mat Min Mat Mat Fac Hostile Shots Fired 126 | . 25 . 33 28 40 Missed 56 | . 10 . 14 12 20 Hits 70 | . 15 . 19 16 20 Projectile 70 | . 15 . 19 16 20 Damage Taken 889 | . 183 . 270 266 170 Core 587 | . 183 . 242 134 28 Absorbed by Shields 8 | . . . . . 8 Core Remaining (%) 60 | 100 . 26 39 75 . Volleys Fired 1 | . . . . 1 . Largest 1 | . . . . 1 . Hottest 36 | . . . . 36 . Shots Fired 1 | . . . . 1 . Gun . | . . . . . . Cannon . | . . . . . . Launcher 1 | . . . . 1 . Special . | . . . . . . Kinetic . | . . . . . . Thermal . | . . . . . . Explosive 1 | . . . . 1 . Electromagnetic . | . . . . . . Robot Hit Streak 1 | . . . . 1 . Robot Miss Streak . | . . . . . . Penetration Max . | . . . . . . Secondary Targets . | . . . . . . Shots Hit Robots 8 | . . . . 2 6 Core Hits 4 | . . . . 3 1 Critical Kills 1 | . . . . . 1 Critical Parts Destroyed 3 | . . . . . 3 Critical Strikes 4 | . . . . . 4 Smash 4 | . . . . . 4 Melee Attacks 22 | . . . 5 7 10 Impact 22 | . . . 5 7 10 Slashing . | . . . . . . Piercing . | . . . . . . Sneak Attacks 3 | . . . . . 3 Combat Hostiles . | . . . . . . Follow-up Attacks . | . . . . . . Damage Inflicted 635 | . 12 . . 222 401 Guns . | . . . . . . Cannons . | . . . . . . Explosions 191 | . . . . 191 . Melee 432 | . . . . 31 401 Ramming 12 | . 12 . . . . Kinetic . | . . . . . . Thermal . | . . . . . . Explosive 191 | . . . . 191 . Electromagnetic . | . . . . . . Impact 432 | . . . . 31 401 Slashing . | . . . . . . Piercing . | . . . . . . Highest Corruption 1 | . . . 1 1 . Average Corruption 1 | . . . 1 1 . Corruption Purged . | . . . . . . Corruption Blocked . | . . . . . . Effects 4 | . . . . 4 . Heat Flow Errors 2 | . . . . 2 . Data Loss (major) 2 | . . . . 2 . Overload Shots . | . . . . . . Overflow Damage 332 | . . . . 15 317 Projectiles . | . . . . . . Explosions 15 | . . . . 15 . Melee 317 | . . . . . 317 Knockbacks 1 | . . . . . 1 Impact 1 | . . . . . 1 Kinetic . | . . . . . . Secondary . | . . . . . . Self-Inflicted Damage 57 | . 5 . . 52 . Shots 1 | . . . . 1 . Rammed 4 | . 4 . . . . Targets Rammed 4 | . 4 . . . . Kicked . | . . . . . . Crushed . | . . . . . . Highest Temperature 187 | . . . . 187 . Average Temperature 79 | . . . . 79 . Received Heat Transfer 381 | . 102 . 117 99 63 Siege Activations . | . . . . . . Martial Activations . | . . . . . . Shielding Activations . | . . . . . . Robots Disrupted . | . . . . . . Combat Hostiles . | . . . . . . Robots Corrupted . | . . . . . . Combat Hostiles . | . . . . . . Parts Fried 4 | . . . . . 4 Impact Corruptions 10 | . . . . . 10 Robots Melted . | . . . . . . Combat Hostiles . | . . . . . . Parts Melted . | . . . . . . Heat Transferred . | . . . . . . Parts Sabotaged . | . . . . . . Parts Stolen . | . . . . . . Parts Stripped . | . . . . . . Power Chain Reactions . | . . . . . . Alert | -11 -10 -10 -9 -8 -7 ------- Run | Yrd Mat Min Mat Mat Fac Maximum Alert Level . | . . . . . . Low Security (%) 100 | 100 100 100 100 100 100 Level 1 . | . . . . . . Level 2 . | . . . . . . Level 3 . | . . . . . . Level 4 . | . . . . . . Level 5 . | . . . . . . High Security . | . . . . . . Max Security . | . . . . . . Peak Influence 129 | . 5 . 37 129 107 Initial 58 | . . . . 15 58 Average 37 | . 1 . 9 57 76 Influence Increases 400 | . 5 . 94 182 119 Destroy 0b10 Robot/C 100 | . . . . 80 20 Destroy 0b10 Robot/NC 15 | . . . . . 15 Destroy Leader 12 | . . . . 10 2 Successful Hack 46 | . 5 . 16 20 5 Disable Machine 15 | . . . . 15 . Destroy Structure 17 | . . . 3 12 2 Partial Spotted 30 | . . . 30 . . Lose Combat Pursuer 165 | . . . 45 45 75 Influence Decreases 303 | . 5 . 57 90 151 Entered New Map 93 | . . . . 22 71 Time Decay 170 | . 5 . 47 58 60 Lost Part 40 | . . . 10 10 20 Squads Dispatched 5 | . 1 . 1 1 2 Investigation 4 | . . . 1 1 2 Extermination . | . . . . . . Reinforcement 1 | . 1 . . . . Assault . | . . . . . . Garrison . | . . . . . . Intercept . | . . . . . . Searches Triggered . | . . . . . . Construction Impeded . | . . . . . . Haulers Reinforced . | . . . . . . Active Scanning Responses . | . . . . . . Cargo Convoy Interrupts . | . . . . . . Stealth | -11 -10 -10 -9 -8 -7 --------- Run | Yrd Mat Min Mat Mat Fac Distress Signals 1 | . . . . . 1 Communications Jammed . | . . . . . . Distress Signals . | . . . . . . Times Spotted 31 | . 7 . 6 9 9 Peak Tracking Total 6 | . 6 . 4 6 5 Tactical Retreats 6 | . . . 1 2 3 Traps | -11 -10 -10 -9 -8 -7 ------- Run | Yrd Mat Min Mat Mat Fac Traps Triggered 2 | . . . 1 . 1 Indirectly . | . . . . . . Trap Hack Attempts . | . . . . . . Triggered . | . . . . . . Disarmed . | . . . . . . Reprogrammed . | . . . . . . Reused . | . . . . . . Traps Extracted . | . . . . . . Installed . | . . . . . . Triggered . | . . . . . . Machines | -11 -10 -10 -9 -8 -7 ---------- Run | Yrd Mat Min Mat Mat Fac Machines Disabled 1 | . . . . 1 . Max in Single Turn 1 | . . . . 1 . Machines Repaired . | . . . . . . Machines Dismantled . | . . . . . . Machines Sabotaged . | . . . . . . Overloaded Fab Kills . | . . . . . . Hacking | -11 -10 -10 -9 -8 -7 --------- Run | Yrd Mat Min Mat Mat Fac Machines Accessed 7 | . 1 . 2 2 2 Terminals 7 | . 1 . 2 2 2 Fabricators . | . . . . . . Repair Stations . | . . . . . . Recycling Units . | . . . . . . Scanalyzers . | . . . . . . Garrison Access . | . . . . . . Total Hacks 24 | . 5 . 7 6 6 Successful 8 | . 1 . 3 3 1 Failed 16 | . 4 . 4 3 5 Catastrophic 6 | . 1 . 2 2 1 Database Lockouts . | . . . . . . Manual 23 | . 5 . 7 5 6 Terminals 24 | . 5 . 7 6 6 Fabricators . | . . . . . . Repair Stations . | . . . . . . Recycling Units . | . . . . . . Scanalyzers . | . . . . . . Garrison Access . | . . . . . . Terminal Hacks 3 | . . . 1 2 . Level Access Points 2 | . . . 1 1 . Registered Components 1 | . . . . 1 . Fabricator Hacks . | . . . . . . Repair Station Hacks . | . . . . . . Recycling Unit Hacks . | . . . . . . Scanalyzer . | . . . . . . Garrison Access Hacks . | . . . . . . Unauthorized Hacks 5 | . 1 . 2 1 1 Terminals 5 | . 1 . 2 1 1 Botnet 5 | . 1 . 2 1 1 Fabricators . | . . . . . . Repair Stations . | . . . . . . Recycling Units . | . . . . . . Scanalyzers . | . . . . . . Garrison Access . | . . . . . . Data Cores Recovered . | . . . . . . Used . | . . . . . . Hacking Detections 5 | . 1 . 1 1 2 Full Trace Events 5 | . 1 . 1 1 2 Feedback Events 1 | . . . . 1 . Corruption 1 | . . . . 1 . Feedback Blocked . | . . . . . . Robot Schematics Acquired . | . . . . . . Robots Built . | . . . . . . Authchips . | . . . . . . Time . | . . . . . . Total Robot Build Rating . | . . . . . . Part Schematics Acquired . | . . . . . . Parts Built . | . . . . . . Authchips . | . . . . . . Time . | . . . . . . Total Part Build Rating . | . . . . . . Parts Repaired . | . . . . . . Time . | . . . . . . Parts Recycled . | . . . . . . Recycled Matter . | . . . . . . Retrieved Matter . | . . . . . . Retrieved Components . | . . . . . . Parts Scanalyzed . | . . . . . . Part Schematics Acquired . | . . . . . . Parts Damaged . | . . . . . . Bothacking | -11 -10 -10 -9 -8 -7 ------------ Run | Yrd Mat Min Mat Mat Fac Used RIF Installer . | . . . . . . Robots Hacked . | . . . . . . Non-combat . | . . . . . . Combat . | . . . . . . Robot Hacks Applied . | . . . . . . Relay Couplers Released . | . . . . . . Fabnet Peak Effective % . | . . . . . . Robots Rewired . | . . . . . . Allies Hacked . | . . . . . . Hacks Repelled . | . . . . . . Allies | -11 -10 -10 -9 -8 -7 -------- Run | Yrd Mat Min Mat Mat Fac Total Allies . | . . . . . . Largest Group . | . . . . . . Highest-Rated Group . | . . . . . . Highest-Rated Ally . | . . . . . . Total Orders . | . . . . . . Ally Attacks . | . . . . . . Total Damage . | . . . . . . Kills . | . . . . . . Allies Corrupted . | . . . . . . Allies Melted . | . . . . . . Intel | -11 -10 -10 -9 -8 -7 ------- Run | Yrd Mat Min Mat Mat Fac Active Infowar (turns) 306 | . . . 46 139 121 Sensors 20 | . . . . 20 . Structural 306 | . . . 46 139 121 Robot Analysis Total . | . . . . . . Derelict Logs Recovered 1 | . . 1 . . . Drone Launches . | . . . . . . Drone Recoveries . | . . . . . . Exploration | -11 -10 -10 -9 -8 -7 ------------- Run | Yrd Mat Min Mat Mat Fac Turns Passed 502 | 16 58 30 138 139 121 Spaces Moved 792 | 26 100 60 239 186 181 Core 464 | 26 100 60 239 39 . Treads . | . . . . . . Legs . | . . . . . . Wheels . | . . . . . . Hover 328 | . . . . 147 181 Flight . | . . . . . . Fastest Speed 36 | 50 50 50 50 48 36 Average Speed 48 | 50 50 50 50 48 46 Slowest Speed 60 | 50 50 50 50 60 52 Overloaded Moves 25 | . . . . . 25 Propulsion Burnouts . | . . . . . . Robots Hopped . | . . . . . . Potential Cave-ins . | . . . . . . Cave-ins Triggered . | . . . . . . Exploration Rate (%) 19 | 4 27 18 38 21 9 Regions Visited 5 Branch Regions 1 Pre-discovered Areas . | . . . . . . Known Exits Taken 2 | . . . 1 1 . Unknown Exits Taken 3 | 1 1 1 . . . Scrap Searched 1 | . . 1 . . . Spaces Dug 7 | . . . 3 2 2 Terrain Destroyed 17 | . . . 3 12 2 Melee 7 | . . . 3 2 2 Projectile . | . . . . . . AOE 10 | . . . . 10 . Terrain Rammed . | . . . . . . Walls Destroyed . | . . . . . . Machines Disabled . | . . . . . . Actions | -11 -10 -10 -9 -8 -7 --------- Run | Yrd Mat Min Mat Mat Fac Total 854 | 28 107 59 247 216 197 Wait 5 | . . . . 3 2 Move 787 | 25 99 59 238 185 181 Hop . | . . . . . . Pick Up 13 | 3 3 . 1 6 . Fast Attach 9 | . . . 1 7 1 Attach 5 | . . . 2 3 . Detach . | . . . . . . Swap 2 | . . . . 2 . Drop 3 | . 1 . . 2 . Fire 1 | . . . . 1 . Melee 22 | . . . 5 7 10 Ram 4 | . 4 . . . . Kick . | . . . . . . Crush . | . . . . . . Escape Stasis 3 | . . . . . 3 Rewire . | . . . . . . Trap . | . . . . . . Miscellaneous . | . . . . . . Route ------- -11/Scrapyard -10/Materials -10/Mines -9/Materials (discovered 3 exits: *Mat x3) -8/Materials (discovered 3 exits: *Fac x3) -7/Factory History --------- Turn | Location | Event 11 | -11/Scrapyard | Discovered new exit (range 14) 17 | -11/Scrapyard | Entered Materials 18 | -10/Materials | Met a group of wandering Federalists 55 | -10/Materials | Core integrity fell below 50% 67 | -10/Materials | Discovered new exit (range 14) 75 | -10/Materials | Entered Mines 93 | -10/Mines | Discovered new exit (range 7) 100 | -10/Mines | Learned Materials trap positions 105 | -10/Mines | Entered Materials 105 | -9/Materials | Evolved 2 slots: Propulsion x1, Utility x1 106 | -9/Materials | Loaded intel: 13 trap records 191 | -9/Materials | Identified exit to Materials 234 | -9/Materials | Core integrity fell below 50% 243 | -9/Materials | Entered another Materials area 243 | -8/Materials | Evolved 2 slots: Propulsion x1, Utility x1 259 | -8/Materials | Identified exit to Factory 382 | -8/Materials | Entered Factory 382 | -7/Factory | Evolved 2 slots: Power x1, Propulsion x1 503 | -7/Factory | Self-destructed Last Messages --------------- 00473_ Identified Cld. Airjet. 00477_ Ion Engine destroyed. 00481_ K-01 Serf collects debris. 00482_ Sneak attack on K-01 Serf. 00482_ K-01 Serf suffers critical hit (Smash). 00482_ Destroyed Lgt. Ion Engine. 00482_ Destroyed Wheel. 00482_ Destroyed Sml. Matter Pod. 00482_ K-01 Serf system corrupted by crushing effect. 00482_ K-01 Serf destroyed. 00487_ Acquired 23 matter. 00493_ K-01 Serf collects debris. 00494_ G-47 Trooper suffers critical hit (Smash). 00494_ Destroyed Particle Gun. 00494_ G-47 Trooper system corrupted by crushing effect. 00496_ Gravmag System destroyed. 00496_ K-01 Serf collects debris. 00500_ G-47 Trooper suffers critical hit (Smash). 00500_ G-47 Trooper destroyed. 00500_ K-01 Serf collects debris. Map ----- +----------------------------------------------------+ | ?????????????????????????????????????????????????? | | ?????????????????????????????????????????????##### | | ?????????????????????????????????????????????##### | | ?????????????????????????????????????????????## | | ?????????????????????????????????????????????## | | ?????????????????????????????????????????????## "" | | ??????????????????????????????################# "" | | ????????????????????????????? ################ "" | | ???????????????????????????? # | | ???????????????????????????? + !! | | ???????????????????????????? # !! | | ????????????????????????????????## ######+# *! | | ??????????????????????????######## # # | | ???????????????????????########### # """ # | | ???????????????????????##### # """ # = | | ???????????????????????## # """ [#### | | ???????????????????????## + #### | | ???????????????????????## # """ #### | | ???????????????????????## # """ #### | | ??????????????????####### # """ # | | ??????????????????####### # # | | ?????????????????? + # | | ???????????????????######### ############## | | ???????????????????#########r ############## | | ??????????????????? # % Y # ?????????? # | | ??????????????????? # k@ ## # ?????? ??? # | | ??????????????????? # ## # ???? """?? # | | ??????????????????? # ## # ???"""""?? # | | ??????????????????? # ## # ???""""" ? # | | ???????????????????## ## # ???? ? # | | ???????????????????###+###### # ???? """ # | | ???????????????????## # ?? """"" # | | ????????????????? ? + """"" # | | ?????????????????## ## # | | ?????????????????## /// ## ! / | | ?????????????????## // ## / # | | ?????????????????## // """ ############### | | ????????????????? # """ ############### | | ????????????????? # ![ """ ##???????????## | | ????????????????? # !! ""? ##???????????## | | ????????????????? # ! "????????????????## | | ????????????????? # ????????????????## | | ????????????????? + ????????????????## | | ????????????????? # ???????????????## | | ????????????????? + ??????????????????## | | ????????????????? ###+#+##????????????????##### | | ???????????????????# ????????????????##### | | ???????????????????????????????????? | | ??????????????????????????????????? | | ???????????????????????????????????? | +----------------------------------------------------+ Best States ------------- Heat Dissipation 34 Energy Generation 10 Energy Capacity 250 Matter Stores 300 Matter Capacity 300 Sight Range 16 Robot Scan Range 15 Terrain Scan Density 10 Armor Coverage 225 Evasion (%) 57 Item Schematics ----------------- None Robot Schematics ------------------ None Fabricated ------------ Nothing Repaired ---------- Nothing Alien Tech Used ----------------- None Achievements -------------- None Challenges ------------ None Game ------ Seed CarbideScanMapper Manual? 0 Play Time 00:08:50 Cumulative 235.0 hours Start 2025.08.06 @ 18:24:34 End 2025.08.06 @ 18:31:49 Sessions 1 Manual Loads 0 Difficulty Rogue Special Mode None Game No. 247 Rogue 247 Adventurer 0 Explorer 0 Win Type - Total 9 Types 4/0/3/1/0/0/0/0/0/1 Lore% 74 Gallery% 70 Achievement% 64 Wizard Run 0 Options --------- Layout 1 ASCII 0 Keyboard 1 Movement Numpad Keybinds 0 Fullscreen 1 Font 32/SmallcapsGlow Map View 77x35 Zoom Use 0% Tactical HUD 1 Map Filters NONE Filters NONE Steam 1 RUN: 56d6d726-b13f-41cd-a6d8-e60e696bd634